bitfinex/quotes_SOLUSD_20250902
["timestamp","ask_amount","ask_price","bid_price","bid_amount"]
[1756842902972,0.06,205.7,205.69,8.65894293]
[1756842903362,0.06,205.7,205.69,34.65894293]
[1756842904057,0.06,205.7,205.69,26.7]
[1756842904376,0.06,205.7,205.69,34.65894293]
[1756842904558,0.06,205.7,205.69,39.52062799]
[1756842905276,0.06,205.7,205.69,38.82062799]
[1756842906072,0.06,205.7,205.67,12.82086872]
[1756842906380,0.06,205.7,205.67,4.86192579]
[1756842906558,0.77,205.7,205.67,4.86192579]
[1756842907776,0.06,205.7,205.67,4.86192579]
[1756842908171,0.06,205.7,205.66,12.82128571]
[1756842908571,0.06,205.7,205.66,4.86234278]
[1756842909172,0.06,205.7,205.66,5.15414278]
[1756842909563,0.06,205.7,205.67,8.65894293]
[1756842909770,0.06,205.7,205.69,7.95894293]
[1756842910267,0.06,205.7,205.68,7.95894293]
[1756842910466,0.06,205.7,205.66,5.15414278]
[1756842910685,0.77,205.7,205.66,13.11308571]
[1756842911084,0.06,205.7,205.66,13.11308571]
[1756842911261,0.06,205.7,205.69,7.95894293]
[1756842911463,0.06,205.7,205.69,12.82062799]
[1756842911663,0.06,205.7,205.69,13.49062799]
[1756842912472,0.06,205.7,205.69,5.53168506]
[1756842912673,0.06,205.7,205.69,13.49062799]
[1756842914891,0.06,205.7,205.69,39.49062799]
[1756842916290,0.06,205.7,205.69,30.86168506]
[1756842917075,0.06,205.7,205.69,4.86168506]
[1756842917475,0.06,205.7,205.69,7.95894293]
[1756842918094,0.06,205.7,205.69,8.62894293]
[1756842918279,0.06,205.7,205.69,34.62894293]
[1756842919598,0.06,205.7,205.69,39.49062799]
[1756842920195,0.06,205.7,205.69,38.82062799]
[1756842920695,0.06,205.7,205.69,39.49062799]
[1756842921483,0.06,205.7,205.69,38.82062799]
[1756842922683,0.06,205.7,205.69,30.86168506]
[1756842923084,0.06,205.7,205.69,4.86168506]
[1756842923487,0.73,205.7,205.67,4.86194736]
[1756842923674,0.67,205.69,205.66,12.85130498]
[1756842923872,0.06,205.7,205.66,12.85130498]
[1756842923873,0.06,205.7,205.66,0.03]
[1756842924079,21.55453694,205.67,205.66,0.03]
[1756842924290,22.50886008,205.67,205.66,0.03]
[1756842924491,22.50886008,205.67,205.63,0.03]
[1756842924492,0.14216157,205.65,205.63,0.03]
[1756842924700,8.91326607,205.64,205.63,0.03]
[1756842925077,0.67,205.64,205.63,0.03]
[1756842925286,0.67,205.66,205.63,0.03]
[1756842925497,13.59559401,205.65,205.63,0.03]
[1756842925695,13.59559401,205.66,205.63,0.03]
[1756842925999,13.59559401,205.67,205.63,0.03]
[1756842926183,47.64894293,205.68,205.63,0.03]
[1756842926503,7.95894293,205.68,205.63,0.03]
[1756842926705,0.67,205.67,205.63,0.03]
[1756842927697,39.0,205.69,205.64,7.95894293]
[1756842927898,39.67,205.69,205.65,4.86263068]
[1756842928080,39.0,205.69,205.65,4.86263068]
[1756842928280,0.67,205.68,205.65,4.86263068]
[1756842928804,0.06,205.7,205.67,7.95894293]
[1756842928987,0.06,205.7,205.69,7.95894293]
[1756842929589,0.73,205.7,205.65,4.86263068]
[1756842929789,0.73,205.7,205.67,7.95894293]
[1756842929991,0.73,205.7,205.64,26.0]
[1756842929992,0.67,205.69,205.66,7.95894293]
[1756842930303,0.67,205.69,205.65,7.95894293]
[1756842930686,0.06,205.7,205.66,7.95894293]
[1756842930882,0.06,205.7,205.67,7.95894293]
[1756842931085,0.06,205.7,205.68,7.95894293]
[1756842931783,0.06,205.7,205.69,4.86168506]
[1756842931982,0.06,205.7,205.69,12.82062799]
[1756842932404,0.06,205.7,205.69,4.86168506]
[1756842932601,0.06,205.7,205.69,12.82062799]
[1756842932907,0.06,205.7,205.69,13.49062799]
[1756842933994,0.06,205.7,205.69,12.82062799]
[1756842935480,0.06,205.7,205.68,4.8618778]
[1756842935691,0.06,205.7,205.68,8.04266814]
[1756842935886,0.06,205.7,205.67,0.2918]
[1756842936092,0.67,205.69,205.67,0.2918]
[1756842936305,0.67,205.68,205.67,0.2918]
[1756842936804,3.24079034,205.7,205.67,5.15390148]
[1756842936805,0.06,205.7,205.67,5.15390148]
[1756842937308,0.73,205.7,205.67,5.15390148]
[1756842938004,0.06,205.7,205.67,5.15390148]
[1756842938209,0.06,205.7,205.68,8.62427949]
[1756842938380,0.06,205.7,205.69,7.95427949]
[1756842938582,0.06,205.7,205.69,8.62427949]
[1756842939389,1e-08,205.73,205.72,26.0]
[1756842939606,1e-08,205.75,205.73,0.42648471]
[1756842939811,0.2,205.82,205.74,34.62427949]
[1756842939993,0.2,205.82,205.79,7.95427949]
[1756842940314,0.2,205.82,205.79,12.8136021]
[1756842940615,0.2,205.82,205.77,7.95427949]
[1756842940784,0.87,205.8,205.75,26.0]
[1756842940984,0.87,205.8,205.75,7.95427949]
[1756842940985,0.67,205.79,205.75,7.95427949]
[1756842941187,8.15427949,205.8,205.74,12.81473435]
[1756842941401,0.2,205.8,205.76,7.95427949]
[1756842941604,0.2,205.8,205.77,7.95427949]
[1756842941997,0.87,205.8,205.77,7.95427949]
[1756842942194,0.67,205.79,205.75,12.81449667]
[1756842942611,0.2,205.8,205.76,7.95427949]
[1756842942825,0.87,205.8,205.76,7.95427949]
[1756842943396,0.87,205.8,205.73,0.69]
[1756842943636,0.87,205.8,205.76,7.95427949]
[1756842945301,8.62427949,205.79,205.73,7.95427949]
[1756842945601,7.95427949,205.74,205.66,0.72]
[1756842945821,7.95427949,205.74,205.68,7.95427949]
[1756842946128,7.95427949,205.74,205.68,8.64427949]
[1756842946500,7.95427949,205.74,205.69,7.95427949]
[1756842946820,0.67,205.73,205.68,7.95427949]
[1756842947014,7.95427949,205.74,205.68,8.64427949]
[1756842947929,13.59559401,205.74,205.69,7.95427949]
[1756842948114,14.26559401,205.74,205.69,7.95427949]
[1756842948622,13.59559401,205.74,205.69,7.95427949]
[1756842948819,13.65559401,205.74,205.7,5.55144871]
[1756842949009,0.06,205.74,205.71,7.95427949]
[1756842949209,0.06,205.74,205.71,8.64427949]
[1756842949919,0.06,205.74,205.71,7.95427949]
[1756842950115,0.06,205.74,205.7,12.8157282]
[1756842950421,0.06,205.74,205.7,13.5057282]
[1756842950604,0.06,205.74,205.7,12.8157282]
[1756842950806,0.06,205.74,205.71,0.69]
[1756842951416,0.06,205.74,205.7,7.95427949]
[1756842951630,8.01427949,205.74,205.7,0.69]
[1756842951814,8.01427949,205.74,205.71,0.69]
[1756842952301,0.06,205.74,205.73,7.95427949]
[1756842952632,0.06,205.74,205.73,8.64427949]
[1756842952997,1e-08,205.74,205.73,8.64427949]
[1756842953423,1e-08,205.74,205.73,13.50501929]
[1756842953611,1e-08,205.74,205.73,17.54060817]
[1756842953805,1e-08,205.74,205.73,17.96709288]
[1756842954004,1e-08,205.74,205.73,18.45316686]
[1756842955006,1e-08,205.74,205.73,22.45261496]
[1756842955203,1e-08,205.74,205.73,49.34274659]
[1756842955422,1e-08,205.74,205.73,61.33261496]
[1756842955627,1e-08,205.77,205.76,26.0]
[1756842955837,1e-08,205.77,205.76,38.41635308]
[1756842956014,1e-08,205.77,205.76,27.11648471]
[1756842956213,1e-08,205.77,205.76,39.10635308]
[1756842956423,1e-08,205.77,205.76,44.04617048]
[1756842956921,1e-08,205.79,205.77,0.42648471]
[1756842957124,1e-08,205.8,205.78,12.67986837]
[1756842957316,1e-08,205.8,205.79,12.67986837]
[1756842957737,1e-08,205.8,205.79,17.53919098]
[1756842957936,1e-08,205.8,205.79,30.85932261]
[1756842958104,1e-08,205.8,205.79,42.84919098]
[1756842958313,1e-08,205.8,205.79,43.53919098]
[1756842959526,1e-08,205.8,205.79,36.51202744]
[1756842959914,1e-08,205.8,205.79,36.93851215]
[1756842960118,1e-08,205.8,205.79,41.90121698]
[1756842960437,1e-08,205.8,205.79,36.51202744]
[1756842962531,1e-08,205.8,205.79,31.54932261]
[1756842962738,1e-08,205.8,205.79,36.51202744]
[1756842963043,1e-08,205.8,205.79,4.85932261]
[1756842964445,0.67000001,205.8,205.78,4.85932297]
[1756842964745,1e-08,205.8,205.78,4.85932297]
[1756842964943,1e-08,205.8,205.78,9.8220278]
[1756842965148,0.67000001,205.8,205.78,4.85932297]
[1756842965452,1e-08,205.8,205.78,9.8220278]
[1756842965651,1e-08,205.8,205.78,4.85932297]
[1756842965950,1e-08,205.8,205.79,0.03]
[1756842966452,1e-08,205.8,205.79,0.72]
[1756842966617,1e-08,205.8,205.79,5.68270483]
[1756842966817,1e-08,205.8,205.79,31.68270483]
[1756842967027,1e-08,205.8,205.79,26.03]
[1756842967321,1e-08,205.8,205.79,30.99270483]
[1756842967528,1e-08,205.8,205.79,26.03]
[1756842968018,1e-08,205.8,205.79,4.88932261]
[1756842968351,0.67000001,205.8,205.79,0.03]
[1756842968543,5.63270484,205.8,205.79,0.03]
[1756842968924,0.67000001,205.8,205.79,0.03]
[1756842969124,5.63270484,205.8,205.79,0.03]
[1756842969350,0.67000001,205.8,205.79,0.03]
[1756842970761,12.66160984,205.8,205.79,0.03]
[1756842974051,12.66160984,205.8,205.79,0.3218]
[1756842974257,0.67000001,205.8,205.79,0.3218]
[1756842974432,12.66160984,205.8,205.79,0.3218]
[1756842975334,1e-08,205.8,205.79,0.3218]
[1756842975754,1e-08,205.8,205.79,5.90112261]
[1756842976172,1e-08,205.8,205.79,17.89273244]
[1756842976836,1e-08,205.8,205.79,5.18112261]
[1756842977238,1e-08,205.8,205.79,17.17273244]
[1756842978041,1e-08,205.8,205.79,5.18112261]
[1756842978869,0.71000001,205.8,205.79,0.3218]
[1756842979246,12.70160984,205.8,205.79,0.3218]
[1756842980241,0.71000001,205.8,205.79,0.3218]
[1756842980850,1e-08,205.8,205.79,0.3218]
[1756842981240,0.71000001,205.8,205.79,0.3218]
[1756842981462,12.70160984,205.8,205.79,0.3218]
[1756842981767,11.99160984,205.8,205.79,0.3218]
[1756842982274,1e-08,205.8,205.79,0.3218]
[1756842982448,1e-08,205.8,205.79,5.18112261]
[1756842982647,1e-08,205.8,205.79,0.3218]
[1756842982869,1e-08,205.8,205.79,5.18112261]
[1756842983069,1e-08,205.8,205.79,17.89273244]
[1756842983547,1e-08,205.8,205.79,5.90112261]
[1756842983743,1e-08,205.8,205.79,5.18112261]
[1756842984451,1e-08,205.8,205.79,17.89273244]
[1756842984859,1e-08,205.8,205.79,5.90112261]
[1756842986471,1e-08,205.8,205.79,17.89273244]
[1756842990299,1e-08,205.82,205.81,26.0]
[1756842990452,1e-08,205.82,205.81,11.99160983]
[1756842990856,1e-08,205.82,205.81,12.71160983]
[1756842991080,1e-08,205.82,205.81,38.71160983]
[1756842991262,1e-08,205.82,205.81,77.45160983]
[1756842991465,1e-08,205.82,205.81,75.28102376]
[1756842991877,0.06,205.85,205.81,87.91403477]
[1756842992086,0.06,205.85,205.84,4.96217337]
[1756842992265,0.06,205.85,205.83,4.96217337]
[1756842992460,0.06,205.85,205.82,4.96217337]
[1756842993778,0.06,205.85,205.83,4.85837827]
[1756842994095,0.06,205.85,205.84,4.96217337]
[1756842994666,0.06,205.85,205.84,5.68217337]
[1756842995683,0.06,205.85,205.84,10.54031561]
[1756842996067,0.06,205.85,205.84,30.85814224]
[1756842996268,0.06,205.85,205.84,31.86994224]
[1756842996485,0.06,205.85,205.84,31.14994224]
[1756842997375,0.77,205.85,205.84,31.14994224]
[1756842997574,0.77,205.85,205.84,5.14994224]
[1756842998261,0.77,205.85,205.84,0.2918]
[1756842999262,0.06,205.85,205.84,0.2918]
[1756843000786,5.73217337,205.85,205.84,0.2918]
[1756843002791,24.18567362,205.85,205.84,0.2918]
[1756843003792,24.61215833,205.85,205.84,0.2918]
[1756843010078,63.33215833,205.85,205.84,0.2918]
[1756843010984,39.59559401,205.83,205.82,0.03]
[1756843011295,39.59559401,205.83,205.79,0.03]
[1756843011296,0.28432314,205.81,205.79,0.03]
[1756843011604,48.92866988,205.8,205.79,0.03]
[1756843011778,49.58866988,205.8,205.79,0.03]
[1756843011979,44.62649651,205.8,205.79,0.03]
[1756843012193,49.485583,205.8,205.79,0.03]
[1756843012980,44.62649651,205.8,205.79,0.03]
[1756843013605,47.70371751,205.8,205.79,0.03]
[1756843014103,42.84463102,205.8,205.79,0.03]
[1756843014306,47.70371751,205.8,205.79,0.03]
[1756843016393,42.84463102,205.8,205.79,0.03]
[1756843016903,4.12463102,205.8,205.79,0.03]
[1756843017111,42.84463102,205.8,205.79,0.03]
[1756843017685,55.56586254,205.8,205.79,0.03]
[1756843018302,60.42494903,205.8,205.79,0.03]
[1756843018693,74.16270461,205.8,205.79,0.03]
[1756843018891,35.44270461,205.8,205.79,0.03]
[1756843019102,69.30361812,205.8,205.79,0.03]
[1756843019305,29.78145655,205.8,205.79,0.03]
[1756843019480,52.31559401,205.8,205.79,0.75]
[1756843019808,52.31559401,205.8,205.79,0.03]
[1756843019809,55.49590189,205.8,205.79,0.03]
[1756843020305,56.15590189,205.8,205.79,0.03]
[1756843020685,55.49590189,205.8,205.79,0.03]
[1756843021696,16.77590189,205.8,205.79,0.03]
[1756843021887,55.49590189,205.8,205.79,0.03]
[1756843022300,3.18030788,205.81,205.79,0.75]
[1756843022505,16.77590189,205.83,205.8,4.85908649]
[1756843022700,16.77590189,205.83,205.81,0.72]
[1756843022906,38.72,205.82,205.8,4.85908649]
[1756843023608,38.72,205.82,205.81,0.72]
[1756843024506,13.59559401,205.81,205.79,0.03]
[1756843024688,41.90030788,205.8,205.79,0.03]
[1756843025884,55.49590189,205.8,205.79,0.03]
[1756843026231,69.30361812,205.8,205.79,0.03]
[1756843026396,71.25174914,205.8,205.79,0.03]
[1756843027107,13.87991715,205.8,205.79,0.03]
[1756843027307,55.78022503,205.8,205.79,0.03]
[1756843028503,15.54353528,205.82,205.79,0.75]
[1756843028701,16.77590189,205.8,205.79,0.03]
[1756843028913,17.06022503,205.8,205.79,0.03]
[1756843029221,17.72022503,205.8,205.79,0.03]
[1756843029393,30.58361812,205.8,205.79,0.03]
[1756843029593,35.44270461,205.8,205.79,0.03]
[1756843030006,37.39093051,205.8,205.79,0.03]
[1756843030205,37.39093051,205.8,205.77,0.03]
[1756843030518,16.91806346,205.78,205.77,0.03]
[1756843030715,13.59559401,205.75,205.74,0.03]
[1756843030922,55.61806346,205.75,205.74,0.03]
[1756843031094,61.42265391,205.75,205.74,0.03]
[1756843032599,66.28481017,205.75,205.74,0.03]
[1756843033823,66.28481017,205.75,205.66,0.03]
[1756843033824,13.59559401,205.71,205.66,0.03]
[1756843034018,16.77590189,205.67,205.66,0.03]
[1756843034217,55.49590189,205.67,205.66,0.03]
[1756843034895,60.78454442,205.67,205.66,0.03]
[1756843035101,61.45454442,205.67,205.66,0.03]
[1756843036003,42.91806346,205.64,205.63,0.03]
[1756843036205,81.63806346,205.64,205.63,0.03]
[1756843036412,82.30806346,205.64,205.63,0.03]
[1756843037022,89.12058088,205.64,205.63,0.03]
[1756843037923,50.40058088,205.64,205.63,0.03]
[1756843038232,83.58771374,205.64,205.63,0.03]
[1756843038728,89.12058088,205.64,205.63,0.03]
[1756843039124,57.58771374,205.64,205.63,0.03]
[1756843039836,18.86771374,205.64,205.63,0.03]
[1756843040037,15.68740586,205.64,205.63,0.03]
[1756843040236,57.58771374,205.64,205.63,0.03]
[1756843040736,63.12058088,205.64,205.63,0.03]
[1756843041032,58.25771374,205.64,205.63,0.03]
[1756843041534,63.40490402,205.64,205.63,0.03]
[1756843042335,24.01490402,205.64,205.63,0.03]
[1756843042541,62.73490402,205.64,205.63,0.03]
[1756843043937,63.40490402,205.64,205.63,0.03]
[1756843044838,13.59559401,205.61,205.58,0.1]
[1756843045014,17.2023866,205.59,205.58,0.1]
[1756843045433,19.82251214,205.59,205.58,0.1]
[1756843045830,24.68656194,205.59,205.58,0.1]
[1756843048526,39.59559401,205.57,205.56,0.03]
[1756843048733,81.78022503,205.57,205.56,0.03]
[1756843048928,82.45022503,205.57,205.56,0.03]
[1756843049229,84.54279741,205.57,205.56,0.03]
[1756843049959,89.40732044,205.57,205.56,0.03]
[1756843050463,39.59559401,205.54,205.53,0.03]
[1756843050746,81.78022503,205.54,205.53,0.03]
[1756843050961,82.45022503,205.54,205.53,0.03]
[1756843051261,84.40092118,205.54,205.53,0.03]
[1756843052147,88.59615422,205.54,205.53,0.03]
[1756843054031,13.87991715,205.53,205.51,0.03]
[1756843054231,55.78022503,205.52,205.51,0.03]
[1756843054633,14.02207872,205.52,205.51,0.03]
[1756843054843,55.9223866,205.52,205.51,0.03]
[1756843055045,60.79022479,205.52,205.51,0.03]
[1756843055445,55.9223866,205.52,205.51,0.03]
[1756843055748,60.79022479,205.52,205.51,0.03]
[1756843056274,55.9223866,205.52,205.51,0.03]
[1756843057425,17.2023866,205.52,205.51,0.03]
[1756843057632,55.49590189,205.52,205.51,0.7]
[1756843059249,13.59559401,205.52,205.51,5.56594326]
[1756843059458,38.72,205.52,205.51,5.56594326]
[1756843059650,38.72,205.52,205.51,0.7]
[1756843059968,38.72,205.52,205.51,5.56594326]
[1756843061254,3.18030788,205.54,205.51,5.56594326]
[1756843061446,3.18030788,205.57,205.52,0.66]
[1756843061628,25.3,205.56,205.53,3.18030788]
[1756843061832,38.72,205.56,205.54,0.66]
[1756843062032,38.72,205.56,205.55,4.86499635]
[1756843062254,38.72,205.56,205.55,5.52499635]
[1756843062554,38.72,205.57,205.55,5.52499635]
[1756843062756,38.72,205.57,205.56,0.66]
[1756843065360,38.72,205.57,205.56,5.52475968]
[1756843065954,5.14931949,205.63,205.56,5.52475968]
[1756843065955,13.87991715,205.63,205.56,5.52475968]
[1756843066156,3.18030788,205.61,205.57,0.66]
[1756843066348,38.72,205.6,205.57,0.66]
[1756843066736,38.72,205.6,205.58,0.66]
[1756843066937,41.90030788,205.6,205.59,0.66]
[1756843068066,41.90030788,205.6,205.57,0.66]
[1756843068357,3.18030788,205.59,205.58,0.66]
[1756843068556,3.18030788,205.59,205.55,0.66]
[1756843068744,3.18030788,205.56,205.55,0.66]
[1756843068945,41.88030788,205.56,205.54,4.86523304]
[1756843069141,41.88030788,205.56,205.54,5.52523304]
[1756843069462,38.7,205.56,205.55,0.66]
[1756843069657,38.7,205.56,205.55,5.52499635]
[1756843071159,41.88030788,205.56,205.53,0.03]
[1756843071350,41.88030788,205.56,205.53,0.69]
[1756843071744,41.88030788,205.56,205.53,0.03]
[1756843072355,41.88030788,205.56,205.53,0.69]
[1756843072553,41.88030788,205.56,205.53,0.03]
[1756843073556,38.7,205.56,205.53,0.03]
[1756843073865,41.88030788,205.56,205.53,0.03]
[1756843075165,41.88030788,205.56,205.53,0.3235]
[1756843075551,43.67932824,205.56,205.53,0.3235]
[1756843076446,4.97932824,205.54,205.53,0.3235]
[1756843076648,43.67932824,205.54,205.53,0.3235]
[1756843076972,57.94492225,205.54,205.53,0.3235]
[1756843077167,0.28432314,205.57,205.53,0.9835]
[1756843077366,38.7,205.56,205.54,0.66]
[1756843077547,38.7,205.56,205.54,5.52504911]
[1756843077747,38.7,205.56,205.54,4.86504911]
[1756843077947,38.7,205.56,205.55,0.66]
[1756843078465,38.7,205.56,205.54,4.86504911]
[1756843079063,38.7,205.56,205.55,0.66]
[1756843079246,38.7,205.56,205.53,0.3235]
[1756843079448,38.7,205.56,205.53,0.9835]
[1756843079865,38.7,205.56,205.53,5.84895903]
[1756843080253,38.7,205.56,205.54,0.66]
[1756843080773,13.87991715,205.58,205.54,0.66]
[1756843080950,38.7,205.57,205.54,0.66]
[1756843081346,43.67932824,205.57,205.53,5.18896842]
[1756843081655,13.59559401,205.54,205.53,0.3235]
[1756843081865,57.70140696,205.54,205.53,0.3235]
[1756843082170,58.37140696,205.54,205.53,0.3235]
[1756843082367,84.37140696,205.54,205.53,0.3235]
[1756843083366,50.53664,205.54,205.53,0.3235]
[1756843083546,52.70207872,205.54,205.53,0.3235]
[1756843083757,57.68140696,205.54,205.53,0.3235]
[1756843083953,58.35140696,205.54,205.53,0.3235]
[1756843084353,57.68140696,205.54,205.53,0.3235]
[1756843084555,13.87991715,205.54,205.53,0.3235]
[1756843084773,58.35140696,205.54,205.53,0.3235]
[1756843085354,63.21664,205.54,205.53,0.3235]
[1756843086679,89.21664,205.54,205.53,0.3235]
[1756843087854,84.35140696,205.54,205.53,0.3235]
[1756843088067,89.21664,205.54,205.53,0.3235]
[1756843088385,50.53664,205.54,205.53,0.3235]
[1756843088584,89.21664,205.54,205.53,0.3235]
[1756843088877,84.35140696,205.54,205.53,0.3235]
[1756843089077,45.67140696,205.54,205.53,0.3235]
[1756843089269,83.68140696,205.54,205.53,0.3235]
[1756843089460,84.35140696,205.54,205.53,0.3235]
[1756843089878,45.67140696,205.54,205.53,0.3235]
[1756843090178,57.68140696,205.54,205.53,0.3235]
[1756843090361,57.53924539,205.54,205.53,0.3235]
[1756843091453,0.28432314,205.54,205.53,0.3235]
[1756843091657,13.59559401,205.54,205.53,1.0435]
[1756843091861,4.97932824,205.56,205.53,1.0435]
[1756843091862,4.97932824,205.56,205.53,5.90896976]
[1756843092076,38.68,205.55,205.54,0.72]
[1756843092382,13.59559401,205.57,205.54,0.72]
[1756843092584,38.68,205.56,205.55,0.72]
[1756843093687,38.68,205.56,205.55,5.58499635]
[1756843094058,5.03932824,205.6,205.55,5.58499635]
[1756843094264,43.65932824,205.59,205.56,0.72]
[1756843094465,43.65932824,205.59,205.55,4.86499635]
[1756843094678,43.65932824,205.59,205.56,0.72]
[1756843095294,18.57492225,205.58,205.54,5.58519098]
[1756843095589,43.65932824,205.57,205.53,0.03]
[1756843095758,4.97932824,205.55,205.53,0.03]
[1756843096076,57.25492225,205.54,205.53,0.03]
[1756843096597,58.37140696,205.54,205.53,0.03]
[1756843097893,52.70207872,205.54,205.53,0.03]
[1756843098095,19.69140696,205.54,205.53,0.03]
[1756843098274,63.23664,205.54,205.53,0.03]
[1756843102492,24.55664,205.54,205.53,0.03]
[1756843102666,63.23664,205.54,205.53,0.03]
[1756843103170,65.18733615,205.54,205.53,0.3235]
[1756843106703,65.16733615,205.54,205.53,0.3235]
[1756843107584,60.30210311,205.54,205.53,0.3235]
[1756843107774,65.16733615,205.54,205.53,0.3235]
[1756843108096,65.22733615,205.54,205.53,0.3235]
[1756843108769,91.22733615,205.54,205.53,0.3235]
[1756843109180,13.59559401,205.52,205.48,0.03]
[1756843109386,62.6407352,205.52,205.48,0.03]
[1756843109686,63.3307352,205.52,205.48,0.03]
[1756843110267,68.1964417,205.52,205.48,0.03]
[1756843110595,40.02207872,205.51,205.48,0.03]
[1756843110773,49.9807352,205.51,205.48,0.03]
[1756843110974,50.6707352,205.51,205.48,0.03]
[1756843111177,40.02207872,205.49,205.48,0.03]
[1756843111477,83.66140696,205.49,205.48,0.03]
[1756843111690,84.35140696,205.49,205.48,0.03]
[1756843112389,45.69140696,205.49,205.48,0.03]
[1756843112565,78.68207872,205.49,205.48,0.03]
[1756843112771,83.23492225,205.49,205.48,0.03]
[1756843113173,83.23492225,205.49,205.48,0.75]
[1756843113388,83.23492225,205.49,205.48,0.03]
[1756843113576,83.66140696,205.49,205.48,0.03]
[1756843113892,57.66140696,205.49,205.48,0.03]
[1756843114094,26.0,205.53,205.48,0.75]
[1756843114296,0.06,205.54,205.51,4.97932824]
[1756843114493,0.06,205.54,205.53,4.97932824]
[1756843114789,19.44,205.54,205.53,5.69932824]
[1756843115088,38.66,205.56,205.53,0.72]
[1756843115287,43.63932824,205.55,205.48,0.03]
[1756843115506,43.63932824,205.54,205.49,0.72]
[1756843115791,18.57492225,205.53,205.49,0.72]
[1756843115980,38.66,205.52,205.5,0.72]
[1756843116171,38.66,205.52,205.51,0.72]
[1756843116771,43.63932824,205.52,205.48,0.03]
[1756843116997,4.97932824,205.5,205.48,0.03]
[1756843117204,18.57492225,205.51,205.49,0.72]
[1756843117403,18.57492225,205.51,205.48,0.03]
[1756843117404,38.66,205.5,205.48,0.03]
[1756843117699,38.66,205.5,205.48,0.75]
[1756843118999,38.66,205.5,205.48,5.61665238]
[1756843119198,38.66,205.5,205.48,0.75]
[1756843119394,4.97932824,205.49,205.48,0.03]
[1756843120078,38.66,205.5,205.48,0.03]
[1756843120280,4.97932824,205.49,205.48,0.03]
[1756843120677,26.42648471,205.55,205.48,0.75]
[1756843120878,4.97932824,205.51,205.48,5.61665013]
[1756843121085,43.63932824,205.5,205.48,0.75]
[1756843121398,38.66,205.5,205.49,0.7]
[1756843121878,38.66,205.5,205.48,4.89662843]
[1756843122278,38.66,205.5,205.48,5.59662843]
[1756843122999,9.95865648,205.56,205.5,4.86618004]
[1756843123211,52.23559401,205.55,205.51,0.7]
[1756843123374,4.97932824,205.54,205.5,4.86618004]
[1756843123575,38.64,205.53,205.51,0.7]
[1756843123784,38.64,205.53,205.5,4.86618004]
[1756843123992,43.61932824,205.53,205.48,5.59642105]
[1756843124297,43.61932824,205.53,205.49,0.7]
[1756843124493,4.97932824,205.52,205.48,4.89642105]
[1756843124698,38.64,205.51,205.48,4.89642105]
[1756843124885,38.64,205.51,205.48,5.59642105]
[1756843125081,38.64,205.51,205.48,0.03]
[1756843125283,38.64,205.51,205.48,5.59663455]
[1756843125686,38.64,205.51,205.48,4.89663455]
[1756843126003,38.64,205.53,205.5,4.97932824]
[1756843126312,38.64,205.53,205.49,4.97932824]
[1756843126596,38.7,205.53,205.51,0.7]
[1756843127185,38.7,205.53,205.51,5.56575757]
[1756843128487,38.7,205.53,205.51,4.86575757]
[1756843129111,38.7,205.53,205.5,4.86618004]
[1756843130282,39.39,205.53,205.49,4.86638126]
[1756843130479,44.36932824,205.53,205.49,4.86638126]
[1756843130683,4.97932824,205.51,205.48,0.03]
[1756843130984,38.64,205.5,205.48,0.03]
[1756843131184,38.64,205.52,205.49,5.67932824]
[1756843131406,38.64,205.52,205.49,0.7]
[1756843131579,38.64,205.52,205.49,5.67932824]
[1756843131786,38.64,205.52,205.5,0.7]
[1756843132491,38.64,205.52,205.49,4.97932824]